[Event "Titled Tuesday Blitz December 14 2021"]
[White "Ljukin, Sergei"]
[Black "Rustemov, Alexander"]
[WhiteFideId "14102200"]
[BlackFideId "4119002"]
[WhiteElo "2311"]
[BlackElo "2863"]
[Result "0-1"]
[Round "01"]
[TimeControl "180+1"]
[Date "2021.12.14"]
[WhiteClock "0:00:09"]
[BlackClock "0:01:38"]

1. e4 {[%clk 0:02:17]}  e6 {[%clk 0:02:59]} 2. d4 {[%clk 0:02:17]}  d5 {[%clk 0:02:59]} 3. Nc3 {[%clk 0:02:17]}  Bb4 {[%clk 0:02:59]} 4. e5 {[%clk 0:02:17]}  c5 {[%clk 0:03:00]} 5. a3 {[%clk 0:02:17]}  Bxc3+ {[%clk 0:03:00]} 6. bxc3 {[%clk 0:02:17]}  Ne7 {[%clk 0:03:01]} 7. h4 {[%clk 0:02:16]}  Qc7 {[%clk 0:03:00]} 8. Nf3 {[%clk 0:02:13]}  h6 {[%clk 0:02:58]} 9. Rb1 {[%clk 0:02:09]}  b6 {[%clk 0:02:57]} 10. h5 {[%clk 0:02:04]}  Ba6 {[%clk 0:02:56]} 11. Bxa6 {[%clk 0:02:02]}  Nxa6 {[%clk 0:02:56]} 12. g4 {[%clk 0:01:59]}  Rc8 {[%clk 0:02:53]} 13. Qe2 {[%clk 0:01:25]}  Nb8 {[%clk 0:02:47]} 14. Rh3 {[%clk 0:01:19]}  Nd7 {[%clk 0:02:40]} 15. dxc5 {[%clk 0:01:10]}  Nxc5 {[%clk 0:02:35]} 16. Nd4 {[%clk 0:01:01]}  a6 {[%clk 0:02:32]} 17. f4 {[%clk 0:00:58]}  b5 {[%clk 0:02:25]} 18. Bd2 {[%clk 0:00:45]}  Ne4 {[%clk 0:02:23]} 19. Re3 {[%clk 0:00:39]}  Nc6 {[%clk 0:02:16]} 20. Nxc6 {[%clk 0:00:31]}  Qxc6 {[%clk 0:02:16]} 21. f5 {[%clk 0:00:19]}  Qc7 {[%clk 0:01:52]} 22. Rxe4 {[%clk 0:00:19]}  dxe4 {[%clk 0:01:51]} 23. Qxe4 {[%clk 0:00:19]}  Qc4 {[%clk 0:01:49]} 24. Qe2 {[%clk 0:00:11]}  Qxe2+ {[%clk 0:01:41]} 25. Kxe2 {[%clk 0:00:10]}  Rc4 {[%clk 0:01:41]} 26. Kf3 {[%clk 0:00:10]}  O-O {[%clk 0:01:39]} 27. f6 {[%clk 0:00:09]}  Rd8 {[%clk 0:01:38]} 0-1


[Site "https://www.chess.com"]

[Event "Titled Tuesday Blitz December 14 2021"]
[White "Lopez Del Alamo, Antonio"]
[Black "Petesch, Gabriel"]
[WhiteFideId "2227339"]
[BlackFideId "2032465"]
[WhiteElo "2082"]
[BlackElo "2374"]
[Result "0-1"]
[Round "01"]
[TimeControl "180+1"]
[Date "2021.12.15"]
[WhiteClock "0:00:10"]
[BlackClock "0:00:06"]

1. e4 {[%clk 0:03:00]}  d5 {[%clk 0:02:55]} 2. exd5 {[%clk 0:02:59]}  Nf6 {[%clk 0:02:54]} 3. d4 {[%clk 0:02:59]}  Nxd5 {[%clk 0:02:54]} 4. c4 {[%clk 0:02:58]}  Nb6 {[%clk 0:02:52]} 5. Nc3 {[%clk 0:02:59]}  g6 {[%clk 0:02:51]} 6. Be3 {[%clk 0:02:58]}  Bg7 {[%clk 0:02:51]} 7. Rc1 {[%clk 0:02:56]}  O-O {[%clk 0:02:48]} 8. Be2 {[%clk 0:02:49]}  Nc6 {[%clk 0:02:47]} 9. d5 {[%clk 0:02:48]}  Ne5 {[%clk 0:02:29]} 10. b3 {[%clk 0:02:47]}  c6 {[%clk 0:02:22]} 11. dxc6 {[%clk 0:02:12]}  Nxc6 {[%clk 0:02:23]} 12. Qxd8 {[%clk 0:02:08]}  Rxd8 {[%clk 0:02:24]} 13. Nf3 {[%clk 0:01:59]}  Bf5 {[%clk 0:02:16]} 14. O-O {[%clk 0:01:41]}  Nb4 {[%clk 0:02:10]} 15. a3 {[%clk 0:01:28]}  Bxc3 {[%clk 0:01:00]} 16. axb4 {[%clk 0:01:27]}  Bxb4 {[%clk 0:01:01]} 17. Nd4 {[%clk 0:01:12]}  Bd7 {[%clk 0:00:57]} 18. Bf3 {[%clk 0:01:10]}  e5 {[%clk 0:00:50]} 19. Nb5 {[%clk 0:01:09]}  Bxb5 {[%clk 0:00:32]} 20. cxb5 {[%clk 0:01:10]}  Nd5 {[%clk 0:00:33]} 21. Bxd5 {[%clk 0:00:54]}  Rxd5 {[%clk 0:00:34]} 22. Rc7 {[%clk 0:00:51]}  Rxb5 {[%clk 0:00:33]} 23. Rfc1 {[%clk 0:00:48]}  Kg7 {[%clk 0:00:33]} 24. Rd7 {[%clk 0:00:46]}  Ba5 {[%clk 0:00:30]} 25. f4 {[%clk 0:00:43]}  Rxb3 {[%clk 0:00:23]} 26. Bf2 {[%clk 0:00:40]}  exf4 {[%clk 0:00:14]} 27. Bd4+ {[%clk 0:00:39]}  Kg8 {[%clk 0:00:14]} 28. Bf6 {[%clk 0:00:28]}  h6 {[%clk 0:00:09]} 29. h4 {[%clk 0:00:24]}  Rb6 {[%clk 0:00:08]} 30. Be5 {[%clk 0:00:23]}  Re6 {[%clk 0:00:06]} 31. Bxf4 {[%clk 0:00:22]}  Kg7 {[%clk 0:00:06]} 32. Rxb7 {[%clk 0:00:18]}  Bb6+ {[%clk 0:00:06]} 33. Kh2 {[%clk 0:00:18]}  Rae8 {[%clk 0:00:04]} 34. Bg3 {[%clk 0:00:18]}  g5 {[%clk 0:00:04]} 35. Rd1 {[%clk 0:00:18]}  gxh4 {[%clk 0:00:04]} 36. Bxh4 {[%clk 0:00:19]}  Rf8 {[%clk 0:00:03]} 37. Rdd7 {[%clk 0:00:19]}  Kg8 {[%clk 0:00:03]} 38. Be1 {[%clk 0:00:18]}  Rxe1 {[%clk 0:00:02]} 39. Rd3 {[%clk 0:00:18]}  Re6 {[%clk 0:00:02]} 40. Rg3+ {[%clk 0:00:18]}  Rg6 {[%clk 0:00:03]} 41. Rh3 {[%clk 0:00:19]}  Rg7 {[%clk 0:00:03]} 42. Rd3 {[%clk 0:00:18]}  Rg6 {[%clk 0:00:03]} 43. Rdd7 {[%clk 0:00:19]}  h5 {[%clk 0:00:04]} 44. Kh3 {[%clk 0:00:19]}  Rg7 {[%clk 0:00:04]} 45. Kh4 {[%clk 0:00:19]}  Rg6 {[%clk 0:00:05]} 46. Kxh5 {[%clk 0:00:20]}  Rg7 {[%clk 0:00:06]} 47. g4 {[%clk 0:00:20]}  Rh7+ {[%clk 0:00:06]} 48. Kg5 {[%clk 0:00:20]}  Rg7+ {[%clk 0:00:07]} 49. Kh5 {[%clk 0:00:20]}  Be3 {[%clk 0:00:07]} 50. Kh4 {[%clk 0:00:18]}  Bf4 {[%clk 0:00:06]} 51. Kh3 {[%clk 0:00:18]}  Rh7+ {[%clk 0:00:07]} 52. Kg2 {[%clk 0:00:18]}  Be3 {[%clk 0:00:07]} 53. Kf3 {[%clk 0:00:19]}  Bb6 {[%clk 0:00:07]} 54. Ke4 {[%clk 0:00:19]}  Rg7 {[%clk 0:00:07]} 55. Kf5 {[%clk 0:00:19]}  Rg6 {[%clk 0:00:07]} 56. g5 {[%clk 0:00:19]}  Rg7 {[%clk 0:00:07]} 57. Rd6 {[%clk 0:00:18]}  Rh7 {[%clk 0:00:06]} 58. Rdd7 {[%clk 0:00:19]}  Rg7 {[%clk 0:00:06]} 59. Kf4 {[%clk 0:00:18]}  Rg6 {[%clk 0:00:06]} 60. Kf5 {[%clk 0:00:18]}  Rc6 {[%clk 0:00:06]} 61. Kg4 {[%clk 0:00:18]}  Rg6 {[%clk 0:00:06]} 62. Kh5 {[%clk 0:00:18]}  Rg7 {[%clk 0:00:06]} 63. Kh4 {[%clk 0:00:18]}  Be3 {[%clk 0:00:06]} 64. Rd5 {[%clk 0:00:17]}  Bb6 {[%clk 0:00:04]} 65. Kh5 {[%clk 0:00:17]}  Rh7+ {[%clk 0:00:04]} 66. Kg4 {[%clk 0:00:17]}  Rg7 {[%clk 0:00:04]} 67. Rdd7 {[%clk 0:00:17]}  f5+ {[%clk 0:00:04]} 68. Kf4 {[%clk 0:00:15]}  Rxd7 {[%clk 0:00:04]} 69. Rxd7 {[%clk 0:00:16]}  Bc5 {[%clk 0:00:04]} 70. g6 {[%clk 0:00:16]}  Bb6 {[%clk 0:00:04]} 71. Kg5 {[%clk 0:00:16]}  Be3+ {[%clk 0:00:04]} 72. Kh5 {[%clk 0:00:16]}  Bc1 {[%clk 0:00:02]} 73. Rc7 {[%clk 0:00:16]}  Be3 {[%clk 0:00:02]} 74. Re7 {[%clk 0:00:15]}  Bb6 {[%clk 0:00:02]} 75. Kh6 {[%clk 0:00:15]}  Bd4 {[%clk 0:00:03]} 76. Rd7 {[%clk 0:00:14]}  Bf6 {[%clk 0:00:03]} 77. Rxa7 {[%clk 0:00:14]}  Be5 {[%clk 0:00:02]} 78. Ra5 {[%clk 0:00:13]}  Bg7+ {[%clk 0:00:02]} 79. Kg5 {[%clk 0:00:13]}  f4 {[%clk 0:00:03]} 80. Ra2 {[%clk 0:00:12]}  f3 {[%clk 0:00:03]} 81. Rf2 {[%clk 0:00:12]}  Bd4 {[%clk 0:00:04]} 82. Rf1 {[%clk 0:00:12]}  f2 {[%clk 0:00:04]} 83. Kg4 {[%clk 0:00:12]}  Bc3 {[%clk 0:00:05]} 84. Kg3 {[%clk 0:00:11]}  Be1 {[%clk 0:00:05]} 85. Kg4 {[%clk 0:00:11]}  Kg7 {[%clk 0:00:06]} 86. Kg5 {[%clk 0:00:12]}  Rf6 {[%clk 0:00:06]} 87. Kh5 {[%clk 0:00:10]}  Rxg6 {[%clk 0:00:06]} 88. Kh4 {[%clk 0:00:10]}  Rg1 {[%clk 0:00:06]} 0-1


[Site "https://www.chess.com"]

[Event "Titled Tuesday Blitz December 14 2021"]
[White "Majdan, Joanna"]
[Black "Shubin, Kirill"]
[WhiteFideId "1121979"]
[BlackFideId "34119962"]
[WhiteElo "2270"]
[BlackElo "2501"]
[Result "0-1"]
[Round "01"]
[TimeControl "180+1"]
[Date "2021.12.15"]
[WhiteClock "0:00:01"]
[BlackClock "0:00:12"]

1. e4 {[%clk 0:02:59]}  e6 {[%clk 0:02:59]} 2. d4 {[%clk 0:02:59]}  d5 {[%clk 0:02:59]} 3. Nc3 {[%clk 0:03:00]}  Bb4 {[%clk 0:02:58]} 4. Ne2 {[%clk 0:02:59]}  Nc6 {[%clk 0:02:56]} 5. e5 {[%clk 0:02:57]}  f6 {[%clk 0:02:55]} 6. f4 {[%clk 0:02:49]}  Nh6 {[%clk 0:02:46]} 7. a3 {[%clk 0:02:49]}  Ba5 {[%clk 0:02:46]} 8. b4 {[%clk 0:02:46]}  Bb6 {[%clk 0:02:45]} 9. Be3 {[%clk 0:02:31]}  fxe5 {[%clk 0:02:39]} 10. fxe5 {[%clk 0:02:26]}  Nf5 {[%clk 0:02:38]} 11. Bf2 {[%clk 0:02:24]}  Ncxd4 {[%clk 0:02:27]} 12. Nxd4 {[%clk 0:02:21]}  Nxd4 {[%clk 0:02:25]} 13. Bd3 {[%clk 0:01:51]}  O-O {[%clk 0:02:17]} 14. O-O {[%clk 0:01:41]}  Rxf2 {[%clk 0:01:48]} 15. Rxf2 {[%clk 0:01:33]}  Nf5 {[%clk 0:01:10]} 16. Bxf5 {[%clk 0:01:32]}  Bxf2+ {[%clk 0:01:08]} 17. Kxf2 {[%clk 0:01:33]}  Qf8 {[%clk 0:01:00]} 18. Qd3 {[%clk 0:00:56]}  g6 {[%clk 0:00:57]} 19. g4 {[%clk 0:00:42]}  c6 {[%clk 0:00:53]} 20. Kg1 {[%clk 0:00:35]}  gxf5 {[%clk 0:00:51]} 21. gxf5 {[%clk 0:00:31]}  exf5 {[%clk 0:00:50]} 22. Kh1 {[%clk 0:00:24]}  Be6 {[%clk 0:00:48]} 23. Ne2 {[%clk 0:00:20]}  Qh6 {[%clk 0:00:43]} 24. Nd4 {[%clk 0:00:19]}  Kh8 {[%clk 0:00:36]} 25. Rf1 {[%clk 0:00:20]}  f4 {[%clk 0:00:30]} 26. Nxe6 {[%clk 0:00:18]}  Qxe6 {[%clk 0:00:29]} 27. Qd4 {[%clk 0:00:17]}  Re8 {[%clk 0:00:22]} 28. Rxf4 {[%clk 0:00:17]}  Qxe5 {[%clk 0:00:21]} 29. Rf8+ {[%clk 0:00:15]}  Kg7 {[%clk 0:00:21]} 30. Qxe5+ {[%clk 0:00:10]}  Rxe5 {[%clk 0:00:22]} 31. Ra8 {[%clk 0:00:07]}  a6 {[%clk 0:00:21]} 32. Rb8 {[%clk 0:00:07]}  Re7 {[%clk 0:00:20]} 33. Kg2 {[%clk 0:00:07]}  Kf6 {[%clk 0:00:21]} 34. Kf3 {[%clk 0:00:08]}  Ke5 {[%clk 0:00:20]} 35. Ke3 {[%clk 0:00:06]}  Kd6+ {[%clk 0:00:20]} 36. Kd3 {[%clk 0:00:06]}  Kc7 {[%clk 0:00:20]} 37. Rh8 {[%clk 0:00:06]}  Kb6 {[%clk 0:00:20]} 38. Rg8 {[%clk 0:00:07]}  Kb5 {[%clk 0:00:20]} 39. Kc3 {[%clk 0:00:06]}  b6 {[%clk 0:00:17]} 40. Rh8 {[%clk 0:00:05]}  Re3+ {[%clk 0:00:16]} 41. Kb2 {[%clk 0:00:06]}  Rh3 {[%clk 0:00:16]} 42. Rg8 {[%clk 0:00:04]}  Rxh2 {[%clk 0:00:16]} 43. Kb3 {[%clk 0:00:04]}  Rh3+ {[%clk 0:00:15]} 44. c3 {[%clk 0:00:04]}  c5 {[%clk 0:00:14]} 45. a4+ {[%clk 0:00:05]}  Kc6 {[%clk 0:00:14]} 46. bxc5 {[%clk 0:00:04]}  bxc5 {[%clk 0:00:13]} 47. Rc8+ {[%clk 0:00:05]}  Kb6 {[%clk 0:00:13]} 48. Rb8+ {[%clk 0:00:05]}  Kc7 {[%clk 0:00:13]} 49. Rg8 {[%clk 0:00:04]}  d4 {[%clk 0:00:13]} 50. Kc4 {[%clk 0:00:02]}  Rxc3+ {[%clk 0:00:13]} 51. Kd5 {[%clk 0:00:02]}  d3 {[%clk 0:00:13]} 52. a5 {[%clk 0:00:01]}  d2 {[%clk 0:00:12]} 0-1


[Site "https://www.chess.com"]

[Event "Titled Tuesday Blitz December 14 2021"]
[White "Mickiewicz, Piotr"]
[Black "Sviridov, Valery"]
[WhiteFideId "1114891"]
[BlackFideId "4120680"]
[WhiteElo "2266"]
[BlackElo "2454"]
[Result "0-1"]
[Round "01"]
[TimeControl "180+1"]
[Date "2021.12.14"]
[WhiteClock "0:00:05"]
[BlackClock "0:01:42"]

1. e4 {[%clk 0:02:58]}  e5 {[%clk 0:02:59]} 2. Nf3 {[%clk 0:02:57]}  Nc6 {[%clk 0:02:59]} 3. Bb5 {[%clk 0:02:56]}  Nge7 {[%clk 0:02:59]} 4. c3 {[%clk 0:02:54]}  g6 {[%clk 0:02:58]} 5. d4 {[%clk 0:02:45]}  exd4 {[%clk 0:02:59]} 6. cxd4 {[%clk 0:02:44]}  Bg7 {[%clk 0:02:59]} 7. d5 {[%clk 0:02:38]}  Na5 {[%clk 0:02:59]} 8. O-O {[%clk 0:02:16]}  O-O {[%clk 0:02:57]} 9. Nc3 {[%clk 0:02:06]}  a6 {[%clk 0:02:55]} 10. Be2 {[%clk 0:01:54]}  d6 {[%clk 0:02:54]} 11. Be3 {[%clk 0:01:49]}  c5 {[%clk 0:02:53]} 12. Qd2 {[%clk 0:01:46]}  b5 {[%clk 0:02:51]} 13. Bh6 {[%clk 0:01:41]}  b4 {[%clk 0:02:50]} 14. Nd1 {[%clk 0:01:38]}  f5 {[%clk 0:02:46]} 15. Bxg7 {[%clk 0:01:26]}  Kxg7 {[%clk 0:02:46]} 16. Ne3 {[%clk 0:01:20]}  h6 {[%clk 0:02:39]} 17. exf5 {[%clk 0:00:55]}  Nxf5 {[%clk 0:02:39]} 18. Nc4 {[%clk 0:00:49]}  Nxc4 {[%clk 0:02:36]} 19. Bxc4 {[%clk 0:00:50]}  Qf6 {[%clk 0:02:36]} 20. Rae1 {[%clk 0:00:47]}  Bd7 {[%clk 0:02:36]} 21. Re4 {[%clk 0:00:46]}  g5 {[%clk 0:02:30]} 22. Rfe1 {[%clk 0:00:44]}  a5 {[%clk 0:02:21]} 23. h3 {[%clk 0:00:43]}  Rae8 {[%clk 0:02:20]} 24. Nh2 {[%clk 0:00:16]}  Rxe4 {[%clk 0:02:19]} 25. Rxe4 {[%clk 0:00:15]}  Nd4 {[%clk 0:02:19]} 26. f3 {[%clk 0:00:14]}  Bf5 {[%clk 0:02:12]} 27. Ng4 {[%clk 0:00:13]}  Bxg4 {[%clk 0:02:10]} 28. hxg4 {[%clk 0:00:14]}  a4 {[%clk 0:02:07]} 29. Kh2 {[%clk 0:00:13]}  Ra8 {[%clk 0:02:02]} 30. Qe3 {[%clk 0:00:12]}  a3 {[%clk 0:02:00]} 31. Re7+ {[%clk 0:00:11]}  Kf8 {[%clk 0:01:59]} 32. Re4 {[%clk 0:00:11]}  axb2 {[%clk 0:01:58]} 33. Bd3 {[%clk 0:00:09]}  Ra7 {[%clk 0:01:41]} 34. f4 {[%clk 0:00:08]}  Re7 {[%clk 0:01:40]} 35. fxg5 {[%clk 0:00:06]}  hxg5 {[%clk 0:01:41]} 36. Rxe7 {[%clk 0:00:05]}  Qxe7 {[%clk 0:01:41]} 37. Qf2+ {[%clk 0:00:06]}  Kg7 {[%clk 0:01:41]} 38. Qxb2 {[%clk 0:00:05]}  Qe5+ {[%clk 0:01:41]} 39. g3 {[%clk 0:00:06]}  Nf3+ {[%clk 0:01:41]} 40. Kg2 {[%clk 0:00:05]}  Qxb2+ {[%clk 0:01:42]} 0-1


[Site "https://www.chess.com"]

[Event "Titled Tuesday Blitz December 14 2021"]
[White "Moskalenko, Alexander"]
[Black "Ronka, Erik"]
[WhiteFideId "4155351"]
[BlackFideId "505080"]
[WhiteElo "2515"]
[BlackElo "2264"]
[Result "0-1"]
[Round "01"]
[TimeControl "180+1"]
[Date "2021.12.14"]
[WhiteClock "0:00:08"]
[BlackClock "0:00:06"]

1. d4 {[%clk 0:02:53]}  Nf6 {[%clk 0:02:59]} 2. Bg5 {[%clk 0:02:48]}  e6 {[%clk 0:02:56]} 3. e4 {[%clk 0:02:48]}  h6 {[%clk 0:02:56]} 4. Bxf6 {[%clk 0:02:48]}  Qxf6 {[%clk 0:02:57]} 5. c3 {[%clk 0:02:49]}  Qd8 {[%clk 0:02:57]} 6. Bd3 {[%clk 0:02:49]}  b6 {[%clk 0:02:56]} 7. Nd2 {[%clk 0:02:50]}  Be7 {[%clk 0:02:56]} 8. f4 {[%clk 0:02:49]}  Bb7 {[%clk 0:02:57]} 9. Ne2 {[%clk 0:02:50]}  c5 {[%clk 0:02:56]} 10. O-O {[%clk 0:02:50]}  O-O {[%clk 0:02:55]} 11. Qe1 {[%clk 0:02:43]}  cxd4 {[%clk 0:02:51]} 12. cxd4 {[%clk 0:02:43]}  Nc6 {[%clk 0:02:49]} 13. a3 {[%clk 0:02:42]}  Rc8 {[%clk 0:02:38]} 14. Qg3 {[%clk 0:02:40]}  Kh8 {[%clk 0:02:38]} 15. Rad1 {[%clk 0:02:34]}  Nb8 {[%clk 0:02:30]} 16. Nf3 {[%clk 0:02:07]}  Ba6 {[%clk 0:02:27]} 17. f5 {[%clk 0:02:04]}  Bxd3 {[%clk 0:02:26]} 18. Rxd3 {[%clk 0:02:05]}  Qc7 {[%clk 0:02:22]} 19. Nf4 {[%clk 0:02:00]}  exf5 {[%clk 0:02:14]} 20. e5 {[%clk 0:01:45]}  Qc2 {[%clk 0:01:43]} 21. Qh3 {[%clk 0:01:36]}  Qxb2 {[%clk 0:01:29]} 22. Qxf5 {[%clk 0:01:36]}  Rc2 {[%clk 0:01:15]} 23. Kh1 {[%clk 0:01:36]}  Rc1 {[%clk 0:01:03]} 24. Rdd1 {[%clk 0:01:34]}  Rxd1 {[%clk 0:01:03]} 25. Rxd1 {[%clk 0:01:35]}  Qxa3 {[%clk 0:00:58]} 26. d5 {[%clk 0:01:34]}  Qb3 {[%clk 0:00:39]} 27. Rb1 {[%clk 0:01:32]}  Qe3 {[%clk 0:00:36]} 28. Re1 {[%clk 0:01:29]}  Qc3 {[%clk 0:00:32]} 29. Rd1 {[%clk 0:01:19]}  Kg8 {[%clk 0:00:17]} 30. h4 {[%clk 0:01:19]}  Rc8 {[%clk 0:00:15]} 31. d6 {[%clk 0:01:17]}  Bf8 {[%clk 0:00:15]} 32. Nd5 {[%clk 0:01:17]}  Qc2 {[%clk 0:00:14]} 33. Qxc2 {[%clk 0:00:34]}  Rxc2 {[%clk 0:00:15]} 34. Nd4 {[%clk 0:00:34]}  Rc5 {[%clk 0:00:13]} 35. Nf5 {[%clk 0:00:34]}  Nc6 {[%clk 0:00:11]} 36. Nfe7+ {[%clk 0:00:32]}  Kh7 {[%clk 0:00:08]} 37. Nxc6 {[%clk 0:00:29]}  Rxc6 {[%clk 0:00:09]} 38. Rf1 {[%clk 0:00:27]}  Kg8 {[%clk 0:00:07]} 39. h5 {[%clk 0:00:18]}  Rc5 {[%clk 0:00:08]} 40. Rd1 {[%clk 0:00:19]}  b5 {[%clk 0:00:08]} 41. g4 {[%clk 0:00:08]}  a5 {[%clk 0:00:08]} 42. Kg2 {[%clk 0:00:06]}  b4 {[%clk 0:00:09]} 43. Ne7+ {[%clk 0:00:06]}  Bxe7 {[%clk 0:00:08]} 44. dxe7 {[%clk 0:00:07]}  Rxe5 {[%clk 0:00:08]} 45. Rxd7 {[%clk 0:00:08]}  f6 {[%clk 0:00:06]} 0-1


[Site "https://www.chess.com"]

[Event "Titled Tuesday Blitz December 14 2021"]
[White "Najdin, Danil"]
[Black "Sarana, Alexey"]
[WhiteFideId "4172426"]
[BlackFideId "24133795"]
[WhiteElo "2240"]
[BlackElo "2672"]
[Result "1-0"]
[Round "01"]
[TimeControl "180+1"]
[Date "2021.12.14"]
[WhiteClock "0:00:47"]
[BlackClock "0:01:02"]

1. e4 {[%clk 0:02:23]}  c5 {[%clk 0:02:59]} 2. Nf3 {[%clk 0:02:23]}  d6 {[%clk 0:02:59]} 3. d4 {[%clk 0:02:24]}  cxd4 {[%clk 0:03:00]} 4. Nxd4 {[%clk 0:02:24]}  Nf6 {[%clk 0:03:00]} 5. Nc3 {[%clk 0:02:25]}  a6 {[%clk 0:03:01]} 6. Bc4 {[%clk 0:02:25]}  e6 {[%clk 0:03:00]} 7. Bb3 {[%clk 0:02:26]}  Nbd7 {[%clk 0:02:56]} 8. Bg5 {[%clk 0:02:26]}  Nc5 {[%clk 0:02:56]} 9. Qe2 {[%clk 0:02:18]}  h6 {[%clk 0:02:50]} 10. Bh4 {[%clk 0:02:17]}  Be7 {[%clk 0:02:47]} 11. O-O-O {[%clk 0:02:10]}  Qc7 {[%clk 0:02:46]} 12. f4 {[%clk 0:02:00]}  b5 {[%clk 0:02:28]} 13. e5 {[%clk 0:01:51]}  dxe5 {[%clk 0:02:28]} 14. fxe5 {[%clk 0:01:51]}  Nh7 {[%clk 0:02:28]} 15. Bxe7 {[%clk 0:01:49]}  Qxe7 {[%clk 0:02:29]} 16. Nc6 {[%clk 0:01:44]}  Qg5+ {[%clk 0:02:29]} 17. Kb1 {[%clk 0:01:44]}  O-O {[%clk 0:02:29]} 18. h4 {[%clk 0:01:39]}  Qf4 {[%clk 0:02:09]} 19. Rd4 {[%clk 0:01:38]}  Qg3 {[%clk 0:01:46]} 20. Rh3 {[%clk 0:01:38]}  Qxh3 {[%clk 0:01:46]} 21. gxh3 {[%clk 0:01:38]}  Bb7 {[%clk 0:01:46]} 22. Na5 {[%clk 0:01:32]}  Rfc8 {[%clk 0:01:38]} 23. Nxb7 {[%clk 0:01:30]}  Nxb7 {[%clk 0:01:39]} 24. Ne4 {[%clk 0:01:28]}  Rc7 {[%clk 0:01:39]} 25. Qd3 {[%clk 0:01:21]}  Nf8 {[%clk 0:01:37]} 26. a3 {[%clk 0:01:12]}  Ng6 {[%clk 0:01:37]} 27. Qg3 {[%clk 0:01:06]}  Ne7 {[%clk 0:01:33]} 28. Nd6 {[%clk 0:00:59]}  Rd8 {[%clk 0:01:27]} 29. Rg4 {[%clk 0:00:59]}  g6 {[%clk 0:01:21]} 30. h5 {[%clk 0:00:58]}  Kg7 {[%clk 0:01:08]} 31. hxg6 {[%clk 0:00:57]}  fxg6 {[%clk 0:01:08]} 32. Bxe6 {[%clk 0:00:56]}  Rc6 {[%clk 0:01:03]} 33. Nf5+ {[%clk 0:00:50]}  Nxf5 {[%clk 0:01:03]} 34. Bxf5 {[%clk 0:00:50]}  g5 {[%clk 0:01:02]} 35. h4 {[%clk 0:00:50]}  Rf8 {[%clk 0:01:02]} 36. Be4 {[%clk 0:00:47]} 1-0


[Site "https://www.chess.com"]

[Event "Titled Tuesday Blitz December 14 2021"]
[White "Nasyrova, Ekaterina"]
[Black "Abdrlauf, Elham"]
[WhiteFideId "44157797"]
[BlackFideId "1533533"]
[WhiteElo "2068"]
[BlackElo "2334"]
[Result "1-0"]
[Round "01"]
[TimeControl "180+1"]
[Date "2021.12.15"]
[WhiteClock "0:00:14"]
[BlackClock "0:00:02"]

1. d4 {[%clk 0:02:57]}  Nf6 {[%clk 0:02:59]} 2. c4 {[%clk 0:02:55]}  e6 {[%clk 0:02:58]} 3. Nc3 {[%clk 0:02:54]}  d5 {[%clk 0:02:58]} 4. Nf3 {[%clk 0:02:53]}  dxc4 {[%clk 0:02:56]} 5. e3 {[%clk 0:02:48]}  a6 {[%clk 0:02:55]} 6. Bxc4 {[%clk 0:02:47]}  b5 {[%clk 0:02:55]} 7. Bd3 {[%clk 0:02:48]}  Bb7 {[%clk 0:02:55]} 8. O-O {[%clk 0:02:48]}  Nbd7 {[%clk 0:02:54]} 9. e4 {[%clk 0:02:47]}  b4 {[%clk 0:02:53]} 10. Na4 {[%clk 0:02:46]}  Nxe4 {[%clk 0:02:39]} 11. Re1 {[%clk 0:02:44]}  Nef6 {[%clk 0:02:36]} 12. Bg5 {[%clk 0:02:28]}  Be7 {[%clk 0:02:36]} 13. Rc1 {[%clk 0:02:27]}  O-O {[%clk 0:02:30]} 14. Nc5 {[%clk 0:02:16]}  Nxc5 {[%clk 0:02:27]} 15. dxc5 {[%clk 0:02:15]}  Bd5 {[%clk 0:02:27]} 16. b3 {[%clk 0:02:13]}  h6 {[%clk 0:02:22]} 17. Bf4 {[%clk 0:02:10]}  Nd7 {[%clk 0:02:10]} 18. c6 {[%clk 0:01:49]}  Nf6 {[%clk 0:02:10]} 19. Bb1 {[%clk 0:01:45]}  Bd6 {[%clk 0:02:05]} 20. Ne5 {[%clk 0:01:38]}  a5 {[%clk 0:01:59]} 21. Qd2 {[%clk 0:01:34]}  Re8 {[%clk 0:01:35]} 22. h4 {[%clk 0:01:21]}  Bf8 {[%clk 0:01:18]} 23. g4 {[%clk 0:01:17]}  a4 {[%clk 0:01:14]} 24. g5 {[%clk 0:01:05]}  hxg5 {[%clk 0:00:58]} 25. hxg5 {[%clk 0:01:05]}  Nh5 {[%clk 0:00:58]} 26. Qd3 {[%clk 0:00:48]}  f5 {[%clk 0:00:39]} 27. gxf6 {[%clk 0:00:44]}  Nxf6 {[%clk 0:00:39]} 28. Qg6 {[%clk 0:00:33]}  Re7 {[%clk 0:00:31]} 29. Re3 {[%clk 0:00:32]}  Qe8 {[%clk 0:00:31]} 30. Qg5 {[%clk 0:00:29]}  Qh5 {[%clk 0:00:31]} 31. Qxh5 {[%clk 0:00:22]}  Nxh5 {[%clk 0:00:31]} 32. Bg5 {[%clk 0:00:22]}  Nf6 {[%clk 0:00:30]} 33. Rh3 {[%clk 0:00:22]}  axb3 {[%clk 0:00:19]} 34. axb3 {[%clk 0:00:21]}  Ra3 {[%clk 0:00:17]} 35. f3 {[%clk 0:00:21]}  Rxb3 {[%clk 0:00:14]} 36. Kf2 {[%clk 0:00:21]}  Ne4+ {[%clk 0:00:04]} 37. Bxe4 {[%clk 0:00:14]}  Bxe4 {[%clk 0:00:05]} 38. Rch1 {[%clk 0:00:15]}  Rb2+ {[%clk 0:00:02]} 39. Ke3 {[%clk 0:00:14]} 1-0


[Site "https://www.chess.com"]